bitfinex/quotes_ETHUSD_20240821
["timestamp","ask_amount","ask_price","bid_price","bid_amount"]
[1724280453704,0.92404422,2639.5,2639.3,3.78888]
[1724280453922,1.47404422,2639.4,2639.3,3.78888]
[1724280454125,1.47404422,2639.4,2639.2,6.18643]
[1724280454428,0.35540162,2639.3,2639.2,6.18643]
[1724280454591,0.35756569,2639.3,2639.2,6.18643]
[1724280454926,0.92382216,2639.3,2639.2,6.18643]
[1724280455631,0.55,2639.4,2639.2,6.18643]
[1724280455826,0.92382595,2639.3,2639.2,6.18643]
[1724280457632,0.92382595,2639.3,2639.0,18.23061]
[1724280457795,0.92382595,2639.2,2639.0,20.802671]
[1724280457989,0.55,2639.5,2639.0,12.15]
[1724280457990,0.92379851,2639.1,2639.0,12.15]
[1724280458435,0.92379851,2639.1,2639.0,15.93931]
[1724280458996,2.20702309,2639.4,2639.0,15.93931]
[1724280459195,2.20702309,2639.4,2639.0,3.78931]
[1724280459196,0.92355601,2639.1,2639.0,3.78931]
[1724280462317,1.615,2639.4,2639.0,3.78931]
[1724280462519,0.92367875,2639.1,2639.0,3.78931]
[1724280462728,1.615,2639.4,2639.0,3.78931]
[1724280462729,2.20710176,2639.4,2639.0,3.78931]
[1724280462928,0.03518714,2639.3,2639.1,3.78907]
[1724280463149,0.03518714,2639.3,2639.2,9.91064]
[1724280463150,0.27235587,2639.3,2639.2,9.91064]
[1724280463451,1.615,2639.8,2639.3,3.78876]
[1724280463665,0.23714564,2639.7,2639.4,3.78868]
[1724280463956,0.35529078,2639.6,2639.4,3.78868]
[1724280464119,0.03347836,2639.6,2639.4,3.78868]
[1724280464454,1.615,2639.8,2639.4,3.78868]
[1724280464753,1.615,2639.8,2639.4,6.10888]
[1724280464974,0.59243437,2639.6,2639.4,7.098654]
[1724280465172,0.59243437,2639.7,2639.4,7.098654]
[1724280465332,0.03596878,2639.5,2639.4,3.309974]
[1724280465533,0.59243437,2639.7,2639.4,3.309974]
[1724280465776,0.03596878,2639.5,2639.4,3.309974]
[1724280465961,0.59243437,2639.7,2639.4,3.309974]
[1724280466187,0.03596878,2639.5,2639.4,3.309974]
[1724280466343,0.35531318,2639.5,2639.4,2.3202]
[1724280466549,0.39128196,2639.5,2639.4,2.3202]
[1724280466878,0.39128196,2639.5,2639.3,3.78886]
[1724280467178,0.35531318,2639.4,2639.3,3.78886]
[1724280467363,0.35531318,2639.4,2639.3,1.1404958]
[1724280467564,0.35531318,2639.4,2639.2,2.3202]
[1724280467767,0.03596878,2639.5,2639.2,2.3202]
[1724280467949,0.35528431,2639.3,2639.2,2.3202]
[1724280468746,0.35528431,2639.3,2639.2,6.10922]
[1724280471068,0.35528431,2639.3,2639.2,2.3202]
[1724280471407,0.35520442,2639.3,2639.0,2.4947]
[1724280471604,0.35520442,2639.3,2638.8,2.4947]
[1724280471605,1.14235809,2639.2,2638.8,2.4947]
[1724280471815,0.59235809,2639.1,2638.8,2.4947]
[1724280472015,0.35520442,2639.0,2638.8,3.123134]
[1724280472212,0.35520442,2638.9,2638.8,3.123134]
[1724280473088,0.35520442,2638.9,2638.5,3.78996]
[1724280473331,0.35520442,2638.8,2638.6,2.4947]
[1724280473643,0.35520442,2638.7,2638.6,2.4447]
[1724280474792,2.165,2639.2,2638.6,6.23458]
[1724280474993,0.23719324,2639.0,2638.6,6.23458]
[1724280475235,0.35514422,2638.7,2638.6,6.23458]
[1724280475435,0.35514422,2638.9,2638.6,6.23458]
[1724280475792,0.35514422,2638.8,2638.6,6.23458]
[1724280476018,0.35514422,2638.7,2638.6,6.23458]
[1724280476764,0.35514422,2638.7,2638.6,2.4447]
[1724280478342,0.35509631,2638.7,2638.6,2.4447]
[1724280479802,0.35509306,2638.7,2638.6,2.4447]
[1724280481041,1.97011401,2639.0,2638.4,6.24886]
[1724280481253,0.90511401,2638.9,2638.4,6.24886]
[1724280481399,0.35511401,2638.8,2638.4,6.24886]
[1724280481598,0.35511401,2638.7,2638.4,6.24886]
[1724280481905,0.35511401,2638.6,2638.4,6.24886]
[1724280482105,0.55,2638.9,2638.4,6.24886]
[1724280482344,0.35510816,2638.8,2638.4,6.24886]
[1724280482501,0.35510816,2638.7,2638.5,3.78993]
[1724280482711,0.55,2638.9,2638.6,3.78988]
[1724280482922,0.35511265,2638.8,2638.6,3.78988]
[1724280483114,0.55,2639.1,2638.5,3.78993]
[1724280483115,0.35511265,2638.7,2638.5,3.78993]
[1724280483315,0.55,2639.1,2638.6,0.7252537]
[1724280483539,0.35510693,2639.0,2638.5,3.78993]
[1724280483739,0.55,2638.9,2638.5,3.78993]
[1724280483960,0.35510693,2638.8,2638.5,3.78993]
[1724280484260,0.35510438,2638.7,2638.5,3.78993]
[1724280484751,0.35510438,2638.6,2638.5,3.78993]
[1724280484949,0.35510438,2638.8,2638.5,3.78993]
[1724280485248,0.35520263,2638.7,2638.5,3.78993]
[1724280485417,0.55,2638.9,2638.6,3.78985]
[1724280485621,0.55,2639.1,2638.6,3.78985]
[1724280485822,0.59241861,2639.0,2638.6,3.78985]
[1724280486017,0.55,2638.9,2638.6,3.78985]
[1724280486215,0.35521251,2638.8,2638.6,3.78985]
[1724280486732,0.35521251,2638.8,2638.5,3.78993]
[1724280486907,0.39561317,2638.8,2638.5,3.78993]
[1724280487108,0.35531798,2638.7,2638.5,3.78993]
[1724280487323,0.35531798,2638.6,2638.5,3.78993]
[1724280487812,0.710639,2638.6,2638.4,2.4587]
[1724280488023,0.710639,2638.6,2638.3,3.79023]
[1724280488319,0.35532102,2638.7,2638.2,6.17185]
[1724280488514,0.55,2638.6,2638.2,6.17185]
[1724280488924,0.35532102,2638.5,2638.2,6.17185]
[1724280489106,0.35532102,2638.4,2638.2,6.17185]
[1724280489307,0.55,2638.6,2638.2,6.17185]
[1724280489633,0.35530041,2638.5,2638.2,6.17185]
[1724280489832,0.55,2638.6,2638.5,3.79003]
[1724280490145,0.55,2638.7,2638.6,2.32]
[1724280490351,0.90533463,2638.7,2638.6,2.32]
[1724280491104,0.55,2638.7,2638.6,2.32]
[1724280491430,0.90525477,2638.7,2638.6,2.32]
[1724280494395,0.55,2638.7,2638.6,2.32]
[1724280494680,0.90508322,2638.7,2638.6,2.32]
[1724280499267,1.14228664,2638.7,2638.6,2.32]
[1724280500614,1.14228664,2638.7,2638.6,6.10988]
[1724280500615,0.59228664,2638.7,2638.6,6.10988]
[1724280501084,0.59242061,2638.7,2638.6,6.10988]
[1724280502213,0.59242061,2638.7,2638.6,10.889751]
[1724280502417,0.59240828,2638.7,2638.6,10.889751]
[1724280502565,0.35521069,2638.7,2638.6,10.889751]
[1724280502914,0.35521069,2638.7,2638.6,6.10988]
[1724280503101,0.59240964,2638.7,2638.6,6.10988]
[1724280503722,2.20740964,2638.7,2638.3,6.27631]
[1724280504019,2.20740964,2638.7,2638.1,2.486]
[1724280504020,1.615,2638.5,2638.1,2.486]
[1724280504194,0.59240964,2638.4,2638.1,2.486]
[1724280504507,1.615,2638.5,2638.1,2.486]
[1724280504717,0.55,2638.4,2638.1,6.2766]
[1724280504918,0.59247729,2638.3,2638.1,6.2766]
[1724280505126,0.55,2638.4,2638.1,6.2766]
[1724280505417,0.59247739,2638.3,2638.1,6.2766]
[1724280505564,0.55,2638.4,2638.1,6.2766]
[1724280505768,0.55,2638.4,2638.1,2.486]
[1724280506014,0.55,2638.4,2638.1,6.27659]
[1724280508393,0.55,2638.4,2638.1,2.486]
[1724280508600,0.83209125,2638.4,2638.1,2.486]
[1724280509310,0.55,2638.4,2638.0,3.6944]
[1724280509697,1.615,2638.3,2638.0,3.6944]
[1724280509899,0.55,2638.2,2638.0,3.6944]
[1724280511949,2.01061025,2638.5,2638.0,3.6944]
[1724280511950,0.55,2638.4,2638.0,3.6944]
[1724280512159,1.02082125,2638.4,2638.0,3.6944]
[1724280514554,0.55,2638.4,2638.1,2.2563]
[1724280514851,0.39561025,2638.5,2638.2,3.79034]
[1724280515718,0.39561025,2638.5,2638.3,2.2563]
[1724280516640,0.55,2638.4,2638.3,2.2563]
[1724280517019,0.55,2638.4,2638.1,2.3324]
[1724280518114,0.55,2638.4,2638.1,6.12299]
[1724280518312,0.39561025,2638.5,2638.1,9.91353]
[1724280518662,0.39561025,2638.5,2638.1,6.12294]
[1724280518875,0.39561025,2638.5,2638.1,3.79054]
[1724280519026,0.39561025,2638.5,2638.3,2.4933]
[1724280519850,0.55,2638.4,2638.1,2.4933]
[1724280520313,0.55,2638.4,2638.1,3.65263]
[1724280520519,0.55,2638.4,2638.1,7.44317]
[1724280521665,0.55,2638.4,2638.2,3.79043]
[1724280522547,0.39561025,2638.5,2638.3,2.4542]
[1724280522743,0.39561025,2638.5,2638.4,10.03454]
[1724280522944,0.39561025,2638.5,2638.4,11.199494]
[1724280523342,0.56824209,2638.5,2638.4,11.199494]
[1724280523659,0.59191884,2638.8,2638.5,3.78997]
[1724280523972,0.56824266,2638.7,2638.4,7.409304]
[1724280524123,0.56824266,2638.6,2638.4,6.24435]
[1724280524320,0.56824266,2638.5,2638.4,2.4542]
[1724280524671,0.56822042,2638.5,2638.4,2.4542]
[1724280524818,0.56822042,2638.5,2638.2,6.11225]
[1724280525018,0.56822042,2638.4,2638.2,6.11225]
[1724280525255,0.56822042,2638.3,2638.2,6.11225]
[1724280526374,0.56822042,2638.3,2638.2,7.471979]
[1724280526553,0.56822042,2638.3,2638.2,9.90271]
[1724280526877,0.59189627,2638.6,2638.4,3.79012]
[1724280528148,1.615,2639.0,2638.6,3.78986]
[1724280528353,0.55,2638.9,2638.5,6.11192]
[1724280529782,1.16036339,2638.8,2638.5,6.11192]
[1724280530007,0.55,2638.9,2638.5,6.11192]
[1724280530222,0.7665,2638.9,2638.5,6.11192]
[1724280530634,0.7665,2638.9,2638.5,3.79002]
[1724280533101,0.7665,2638.9,2638.4,3.79008]
[1724280533995,0.7665,2638.9,2638.5,3.79]
[1724280534402,0.55,2638.9,2638.6,2.2583]
[1724280534909,0.55,2638.9,2638.1,5.78558]
[1724280534910,1.615,2638.7,2638.0,5.9527]
[1724280535252,0.59205182,2638.2,2638.0,3.6944]
[1724280535411,1.16042156,2638.1,2638.0,3.6944]
[1724280535839,1.71042156,2638.1,2638.0,3.6944]
[1724280536145,1.71013092,2638.1,2638.0,3.6944]
[1724280540361,1.11822739,2638.1,2638.0,3.6944]
[1724280541847,0.55,2638.1,2638.0,3.6944]
[1724280542447,1.11811313,2638.1,2638.0,3.6944]
[1724280544337,1.11811313,2638.1,2638.0,6.1105]
[1724280545656,2.87212934,2638.7,2638.0,9.90119]
[1724280545961,0.39532934,2638.7,2638.1,6.10144]
[1724280546167,0.59186605,2638.2,2638.1,6.10144]
[1724280546326,0.56821208,2638.2,2638.1,6.10144]
[1724280546529,0.56821208,2638.3,2638.1,6.10144]
[1724280546749,0.56821208,2638.2,2638.1,6.10144]
[1724280547056,0.56821208,2638.3,2638.1,6.10144]
[1724280547568,0.56821208,2638.2,2638.1,6.10144]
[1724280547941,0.56821208,2638.3,2638.1,6.10144]
[1724280548157,0.56821208,2638.2,2638.1,6.10144]
[1724280548657,0.56821208,2638.2,2638.1,7.460102]
[1724280549372,0.56821935,2638.2,2638.1,7.460102]
[1724280549573,9.56499208,2638.9,2638.1,7.460102]
[1724280549761,0.56821994,2638.2,2638.1,6.10144]
[1724280552153,0.56821994,2638.2,2638.1,2.3109]
[1724280554562,1.16011571,2638.3,2638.1,2.3109]
[1724280554779,0.56821994,2638.2,2638.1,2.3109]
[1724280555776,0.56821994,2638.2,2638.0,9.86014]
[1724280555981,0.56821994,2638.1,2638.0,6.0694]
[1724280556194,6.15375,2638.7,2638.0,6.0694]
[1724280556382,0.5683233,2638.1,2638.0,3.6944]
[1724280556696,0.59200344,2638.2,2638.0,3.6944]
[1724280556854,0.5683233,2638.1,2638.0,3.6944]
[1724280557957,1.16032674,2638.1,2638.0,3.6944]
[1724280558380,0.5683233,2638.1,2638.0,3.6944]
[1724280559951,0.56831737,2638.1,2638.0,3.6944]
[1724280561166,1.16031463,2638.1,2638.0,3.6944]
[1724280563880,1.71031463,2638.1,2638.0,3.6944]
[1724280565467,1.11831737,2638.1,2638.0,3.6944]
[1724280570358,1.71031463,2638.1,2638.0,3.6944]
[1724280573509,3.9094011,2639.2,2638.0,3.6944]
[1724280573510,2.77703959,2638.8,2638.4,3.79016]
[1724280573749,4.27046157,2639.1,2638.4,3.79016]
[1724280573750,0.5683259,2638.7,2638.4,10.03456]
[1724280573951,0.59201608,2638.5,2638.4,10.03456]
[1724280574358,1.16034198,2638.5,2638.4,10.03456]
[1724280574559,1.16034198,2638.5,2638.4,6.24448]
[1724280574775,0.5683259,2638.5,2638.4,10.03465]
[1724280574918,0.5683259,2638.5,2638.4,11.199732]
[1724280575436,0.56839355,2638.6,2638.5,3.79003]
[1724280575615,0.56834147,2638.6,2638.5,3.79003]
[1724280575968,0.56829278,2638.6,2638.5,3.79003]
[1724280576834,0.59197164,2638.7,2638.5,3.79003]
[1724280577145,0.56820332,2638.6,2638.5,3.79003]
[1724280584287,0.56820332,2638.6,2638.4,2.4544]
[1724280584583,0.56820332,2638.5,2638.4,2.4544]
[1724280585686,0.56820332,2638.5,2638.4,6.24457]
[1724280590429,3.9118,2638.8,2638.4,3.79017]
[1724280590644,0.56766403,2638.5,2638.2,9.84718]
[1724280590778,0.5913167,2638.5,2638.2,3.79033]
[1724280590974,2.77498073,2638.6,2638.2,3.79033]
[1724280591214,0.56766403,2638.4,2638.2,3.79033]
[1724280592523,0.56766403,2638.4,2638.0,21.2244]
[1724280592524,2.18366403,2638.4,2638.0,21.2244]
[1724280592737,0.56758018,2638.3,2638.0,17.43374]
[1724280593048,0.55,2638.2,2638.0,11.1844]
[1724280593241,2.73358018,2638.2,2638.0,3.6944]
[1724280593543,0.56758018,2638.1,2638.0,3.6944]
[1724280593711,1.11758018,2638.1,2638.0,3.6944]
[1724280594098,1.11752616,2638.1,2638.0,3.6944]
[1724280596859,1.70869924,2638.1,2638.0,3.6944]
[1724280597152,1.70868075,2638.1,2638.0,3.6944]
[1724280597946,2.27305882,2638.1,2638.0,3.6944]
[1724280598525,1.68190423,2638.1,2638.0,3.6944]
[1724280598763,1.68190423,2638.1,2638.0,3.08162998]
[1724280598903,1.68190423,2638.1,2638.0,1.29310088]
[1724280598904,11.72210423,2638.1,2638.0,1.29310088]
[1724280599251,11.72210423,2638.1,2636.7,7.49]
[1724280599252,6.25083,2637.3,2636.7,7.49]
[1724280599443,1.616,2637.0,2636.5,21.7826]
[1724280599643,0.56752616,2636.9,2636.5,21.7826]
[1724280599842,0.56752616,2636.8,2636.5,21.7826]
[1724280600141,0.56752616,2636.7,2636.5,21.7826]
[1724280600346,1.616,2637.0,2636.5,6.13543]
[1724280600561,1.1174428,2636.9,2636.5,6.13543]
[1724280600762,0.5674428,2636.8,2636.5,7.128268]
[1724280600966,0.5674428,2636.8,2636.2,3.79323]
[1724280601164,0.55,2636.7,2636.2,2.3426]
[1724280601322,1.1174428,2636.7,2636.2,2.3426]
[1724280601663,0.5674428,2636.6,2636.2,2.3426]
[1724280601839,1.1174428,2636.5,2636.2,2.3426]
[1724280602038,0.55,2636.5,2636.2,2.3426]
[1724280602268,0.55,2636.7,2636.2,2.3426]
[1724280603134,0.55,2636.7,2636.4,3.79295]
[1724280603339,0.55,2636.9,2636.4,3.79295]
[1724280603640,0.55,2637.1,2636.4,3.79295]
[1724280603835,0.56737917,2637.0,2636.4,3.79295]
[1724280604148,0.55,2636.9,2636.4,7.58591]
[1724280604352,0.59102375,2637.4,2636.6,3.79262]
[1724280604678,0.56741722,2637.3,2636.6,3.79262]
[1724280604979,0.39539417,2637.4,2636.6,7.58529]
[1724280605322,0.39539417,2637.4,2636.6,3.79262]
[1724280605528,0.47136551,2637.3,2636.6,7.5853]
[1724280605723,0.55,2637.2,2636.6,7.5853]
[1724280606471,0.55,2637.2,2636.6,3.79262]
[1724280606985,0.55,2637.3,2636.8,6.16506]
[1724280607325,0.55,2637.4,2636.8,6.16506]
[1724280607884,0.55,2637.4,2636.8,2.3726]
[1724280608041,0.39537352,2637.5,2636.8,6.16499]
[1724280608241,7.6744,2637.6,2636.8,2.3726]
[1724280608446,0.56708718,2637.5,2636.8,2.3726]
[1724280608659,3.79147,2637.5,2636.8,2.3726]
[1724280609466,0.55,2637.4,2636.8,2.3726]
[1724280610169,4.3417,2637.4,2636.6,2.4419]
[1724280610373,0.55,2637.4,2636.6,6.23462]
[1724280610673,0.55,2637.4,2636.8,2.4419]
[1724280610973,0.55,2637.5,2636.8,6.23428]
[1724280611579,0.55,2637.5,2636.8,2.4419]
[1724280611727,0.39453992,2637.4,2636.8,2.4419]
[1724280611929,0.55,2637.3,2636.8,6.23436]
[1724280612675,0.55,2637.3,2636.8,2.4419]
[1724280613180,2.3159,2637.2,2636.5,9.832]
[1724280613325,12.683035,2637.1,2636.5,7.49]
[1724280613676,8.22512,2637.1,2636.5,7.49]
[1724280614345,8.22512,2637.1,2636.3,6.13515]
[1724280615619,4.433,2637.1,2636.3,6.13515]
[1724280616187,4.433,2637.1,2636.3,6.13511]
[1724280616697,0.55,2637.1,2636.3,6.13511]
[1724280617041,0.55,2637.1,2636.3,9.92822]
[1724280617240,0.55,2637.1,2636.3,6.13511]
[1724280617435,0.55,2637.1,2636.3,9.92822]
[1724280617893,0.55,2637.1,2636.3,9.92821]
[1724280618119,0.66578,2637.0,2636.3,9.92821]
[1724280618390,0.55,2636.9,2636.4,6.18091]
[1724280618885,0.94534236,2637.1,2636.4,6.18091]
[1724280619045,0.94534236,2637.1,2636.5,3.7929]
[1724280619249,0.94534236,2637.1,2636.4,6.18099]
[1724280619441,0.39453424,2637.0,2636.4,6.18099]
[1724280619665,0.55,2636.9,2636.4,6.18099]
[1724280620406,0.55,2637.0,2636.8,2.4041]
[1724280620689,0.55,2637.0,2636.3,2.4041]
[1724280620690,6.25136,2637.0,2636.3,2.4041]
[1724280620897,0.55,2636.9,2636.3,2.4041]
[1724280624193,0.55,2636.9,2636.3,6.19719]
[1724280624559,0.55,2636.9,2636.4,3.79304]
[1724280624776,0.55,2636.9,2636.5,2.3763]
[1724280625098,0.55,2637.1,2636.5,2.3763]
[1724280625304,3.55,2637.2,2636.5,2.3763]
[1724280626957,7.34194,2637.2,2636.5,2.3763]
[1724280627201,4.18736762,2637.1,2636.5,2.3763]
[1724280627403,0.55,2637.0,2636.5,2.3763]
[1724280627563,0.47373676,2636.9,2636.3,6.20598]
[1724280627761,0.55,2636.8,2636.3,6.20598]
[1724280629504,0.55,2636.8,2636.4,3.79302]
[1724280629976,0.55,2637.0,2636.3,6.20599]
[1724280630366,2.4291,2636.9,2636.3,2.4128]
[1724280630674,0.84791,2636.8,2636.3,2.4128]
[1724280631105,0.84791,2636.8,2636.1,9.8334]
[1724280631682,0.06502946,2636.7,2636.1,9.8334]
[1724280631889,0.55,2636.6,2636.1,9.8334]
[1724280632088,0.06385342,2636.5,2636.1,2.3434]
[1724280632295,0.55,2636.4,2636.1,2.3434]
[1724280632515,0.06369166,2636.3,2636.1,2.3434]
[1724280632662,0.55,2636.4,2636.1,6.13687]
[1724280633019,0.06428265,2636.3,2636.1,6.13687]
[1724280633405,0.55,2636.4,2636.1,6.13687]
[1724280633768,0.06434054,2636.3,2636.1,6.13687]
[1724280634375,0.55,2636.4,2636.1,2.3434]
[1724280634688,0.06439843,2636.3,2636.1,6.13688]
[1724280634887,0.55,2636.4,2636.1,6.13688]
[1724280635132,0.06442206,2636.3,2636.1,6.13688]
[1724280635633,0.55,2636.4,2636.1,6.13688]
[1724280636006,0.06421944,2636.3,2636.1,6.13688]
[1724280636538,0.55,2636.4,2636.1,6.13681]
[1724280636900,0.06424839,2636.3,2636.1,6.13681]
[1724280637096,0.55,2636.4,2636.1,6.13681]
[1724280637302,0.06424839,2636.3,2636.1,6.13681]
[1724280637611,0.55,2636.4,2636.1,6.13681]
[1724280637944,0.06423235,2636.3,2636.1,6.13681]
[1724280638140,0.55,2636.4,2636.1,6.13681]
[1724280638448,0.06408475,2636.3,2636.1,6.1368]
[1724280639095,0.06408475,2636.3,2636.1,6.13678]
[1724280639291,0.55,2636.4,2636.1,6.13678]
[1724280639739,0.06469064,2636.3,2636.1,6.13678]
[1724280640143,0.06469064,2636.3,2636.1,2.3434]
[1724280640297,0.90419247,2636.2,2635.9,6.10846]
[1724280640496,0.06447103,2636.1,2636.0,3.79358]
[1724280640801,0.55,2636.2,2636.1,6.20168]
[1724280641003,0.90421155,2636.2,2636.1,6.20168]
[1724280642398,0.90421155,2636.2,2636.1,2.4082]
[1724280642598,1.47107911,2636.2,2636.1,2.4082]
[1724280642793,0.90421155,2636.2,2636.1,6.20168]
[1724280643299,1.15853118,2636.7,2636.1,6.20168]
[1724280643499,1.77339558,2636.6,2636.1,6.20168]
[1724280643723,1.15853119,2636.5,2636.1,6.20168]
[1724280643932,1.53579814,2636.4,2636.1,6.20168]
[1724280644108,1.15852885,2636.3,2636.2,3.79333]
[1724280644447,1.22316163,2636.3,2636.2,3.79333]
[1724280644890,1.22316163,2636.3,2636.1,2.4082]
[1724280645095,0.92110814,2636.2,2636.1,6.20167]
[1724280645843,3.29791,2636.8,2636.1,6.20167]
[1724280645844,0.39548805,2636.9,2636.3,2.496]
[1724280646056,1.15866461,2636.8,2636.3,2.496]
[1724280646195,1.15866461,2636.7,2636.3,2.496]
[1724280646548,1.22359569,2636.6,2636.3,2.496]
[1724280646843,1.15866461,2636.5,2636.3,2.496]
[1724280647039,1.15866461,2636.4,2636.3,2.496]
[1724280647245,1.77337613,2636.4,2636.3,2.496]
[1724280647599,1.77337613,2636.4,2636.1,2.4696]
[1724280647801,1.15866461,2636.3,2636.1,2.4696]
[1724280648133,1.22324961,2636.2,2636.1,2.4696]
[1724280648333,0.92126455,2636.2,2636.1,6.26308]
[1724280649072,0.35433252,2636.2,2636.1,2.4696]
[1724280650070,0.80436076,2636.3,2636.2,2.2888]
[1724280650270,5.58123541,2637.4,2637.0,3.79207]
[1724280650271,0.39533243,2637.3,2637.0,3.79207]
[1724280650486,0.39533243,2637.3,2637.0,2.2888]
[1724280650487,0.35451343,2637.2,2637.0,2.2888]
[1724280650773,0.35451343,2637.1,2637.0,2.2888]
[1724280650925,0.59188848,2637.1,2637.0,2.2888]
[1724280651125,1.21900966,2637.1,2636.8,3.79236]
[1724280651477,1.67789969,2637.1,2636.8,2.2888]
[1724280651687,1.618,2636.9,2636.8,2.2888]
[1724280651824,1.618,2636.9,2636.3,6.16678]
[1724280652026,1.618,2636.7,2636.3,6.16678]
[1724280652225,1.618,2636.7,2636.3,9.95996]
[1724280652436,0.0596267,2636.6,2636.4,3.79304]
[1724280652840,0.20734541,2637.1,2636.4,3.79304]
[1724280653073,0.0595459,2636.5,2636.4,3.79304]
[1724280653288,0.55,2637.0,2636.4,4.789022]
[1724280653493,0.55,2637.0,2636.4,3.79304]
[1724280653796,0.05989916,2636.9,2636.4,3.79304]
[1724280654441,2.53999916,2636.9,2636.3,6.16678]
[1724280654643,0.55,2636.8,2636.3,6.16678]
[1724280655060,0.0597665,2636.7,2636.3,6.16678]
[1724280655491,0.55,2636.8,2636.3,6.16678]
[1724280655790,0.05982435,2636.7,2636.3,6.16678]
[1724280656283,0.55,2636.8,2636.3,6.16678]
[1724280656445,0.05971463,2636.6,2636.3,6.16678]
[1724280656642,0.55,2636.8,2636.3,2.3736]
[1724280656643,0.05982435,2636.7,2636.3,2.3736]
[1724280656843,0.05982435,2636.7,2636.0,7.8698]
[1724280656844,0.0594024,2636.5,2636.0,9.7812]
[1724280657048,2.9171,2636.6,2636.0,9.7812]
[1724280657362,2.9171,2636.6,2636.0,7.49]
[1724280657363,0.05855018,2636.5,2636.0,7.49]
[1724280657538,0.55,2636.4,2636.0,7.49]
[1724280657741,0.05833061,2636.3,2636.0,7.49]
[1724280657991,0.05833061,2636.3,2635.8,6.08506]
[1724280658145,0.05833061,2636.3,2635.9,3.79373]
[1724280658346,0.05833061,2636.3,2636.0,3.79359]
[1724280661068,0.05833061,2636.3,2636.0,7.58712]
[1724280661279,0.05833061,2636.3,2636.1,2.2747]
[1724280662118,0.05833061,2636.3,2636.1,6.06817]
[1724280662456,0.05833061,2636.3,2636.1,2.2747]
[1724280666408,0.05833061,2636.3,2635.8,3.79381]
[1724280666557,0.05833061,2636.3,2635.9,6.22276]
[1724280667196,0.05833061,2636.3,2636.1,3.79347]
[1724280667575,0.39558545,2636.5,2636.1,3.79347]
[1724280667816,0.05625343,2636.4,2636.2,2.2894]
[1724280669108,0.05625343,2636.4,2636.3,3.79319]
[1724280669428,0.05625343,2636.4,2636.3,6.23329]
[1724280669577,0.05625343,2636.4,2636.3,7.235958]
[1724280670206,0.05625343,2636.4,2636.3,3.442768]
[1724280670514,0.05625343,2636.4,2636.1,3.79337]
[1724280670665,0.05625343,2636.4,2636.2,2.2697]
[1724280671363,0.05625343,2636.4,2635.9,4.795347]
[1724280671563,0.05625343,2636.4,2636.0,2.2697]
[1724280675524,0.05625343,2636.4,2636.0,6.06331]
[1724280675672,0.05625343,2636.4,2636.1,3.79346]
[1724280675877,0.05625343,2636.4,2636.2,2.4053]
[1724280680047,0.05625343,2636.4,2636.2,6.19863]
[1724280680657,0.05625343,2636.4,2636.3,3.79319]
[1724280680819,0.05625343,2636.4,2636.3,9.99168]
[1724280681420,0.39550111,2637.1,2636.6,2.4053]
[1724280682069,7.06646707,2637.5,2636.9,3.79233]
[1724280682070,0.05301316,2637.0,2636.9,3.79233]
[1724280682428,0.39550586,2637.5,2636.9,3.79233]
[1724280682630,0.05323376,2637.0,2636.9,3.79233]
[1724280682863,0.39550586,2637.5,2636.9,4.412093]
[1724280683071,0.05323376,2637.0,2636.9,4.412093]
[1724280683228,0.39550586,2637.5,2636.9,4.412093]
[1724280683434,0.053428,2637.0,2636.9,4.412093]
[1724280683648,0.39550586,2637.5,2636.9,4.412093]
[1724280683860,0.05009623,2637.0,2636.9,4.412093]
[1724280684064,0.55,2637.4,2636.9,4.412093]
[1724280684269,0.04637644,2637.0,2636.9,4.412093]
[1724280684576,0.55,2637.4,2637.1,2.4053]
[1724280686861,3.884,2637.3,2636.8,2.4053]
[1724280687263,0.55,2637.2,2636.8,2.4053]
[1724280688678,0.04264225,2637.1,2636.8,2.4053]
[1724280690937,0.04264225,2637.1,2636.8,6.19777]
[1724280692032,0.04264225,2637.1,2636.8,9.99016]
[1724280692233,0.04264225,2637.1,2636.8,2.4053]
[1724280692437,0.04264225,2637.1,2637.0,7.58436]
[1724280692636,0.39550586,2637.5,2637.0,3.79218]
[1724280692864,0.04257999,2637.1,2636.7,3.79254]
[1724280693191,2.2532,2636.7,2635.9,3.79369]
[1724280693393,0.04147493,2636.6,2635.9,3.79369]
[1724280693569,3.92547493,2636.6,2635.9,3.79369]
[1724280693881,0.55,2636.5,2635.9,3.79369]
[1724280694088,0.59141234,2636.5,2635.9,3.79369]
[1724280694585,0.59141234,2636.5,2636.0,3.79362]
[1724280694788,1.26427357,2636.5,2636.0,3.79362]
[1724280695499,1.26427357,2636.5,2635.8,3.79389]
[1724280695861,2.3726,2636.4,2635.8,3.79389]
[1724280696067,2.41402572,2636.4,2635.8,3.79389]
[1724280696793,2.41402572,2636.4,2635.8,7.58778]
[1724280697292,2.41402572,2636.4,2635.8,3.79389]
[1724280697461,2.41402572,2636.4,2635.8,7.58772]
[1724280698588,2.41402572,2636.4,2635.9,3.79366]
[1724280698930,0.04142572,2636.4,2636.0,2.2983]
[1724280700106,0.04142572,2636.4,2636.1,3.79337]
[1724280700329,0.39551568,2636.6,2636.1,7.58677]
[1724280700479,0.39551568,2636.6,2636.2,3.79333]
[1724280702120,0.39551568,2636.6,2636.3,6.07559]
[1724280702419,0.39551568,2636.6,2636.3,6.07549]
[1724280703116,0.39551568,2636.6,2636.3,9.86859]
[1724280703274,0.39551568,2636.6,2636.3,7.062349]
[1724280703712,0.03827772,2636.5,2636.3,7.062349]
[1724280704481,0.03827772,2636.5,2636.3,3.269259]
[1724280704682,0.03827772,2636.5,2636.3,7.062419]
[1724280705679,0.03827772,2636.5,2636.4,3.79305]
[1724280705890,0.03827772,2636.5,2636.4,4.8786139]
[1724280707099,0.03827772,2636.5,2636.4,8.6716639]